[Event "Titled Tuesday Blitz February 14 Early 2023"]
[White "Ljukin, Sergei"]
[Black "Zherebtsova, Alexandra"]
[WhiteFideId "14102200"]
[BlackFideId "24129518"]
[WhiteElo "2362"]
[BlackElo "2155"]
[Result "1-0"]
[Round "07"]
[TimeControl "180+2"]
[Date "2023.02.15"]
[WhiteClock "0:00:31"]
[BlackClock "0:00:15"]

1. e4 {[%clk 0:03:00]}  e5 {[%clk 0:02:59]} 2. Nf3 {[%clk 0:03:00]}  Nc6 {[%clk 0:02:59]} 3. Bb5 {[%clk 0:03:00]}  a6 {[%clk 0:02:59]} 4. Ba4 {[%clk 0:03:00]}  Nf6 {[%clk 0:02:58]} 5. Qe2 {[%clk 0:03:00]}  Bc5 {[%clk 0:02:57]} 6. c3 {[%clk 0:03:00]}  b5 {[%clk 0:02:56]} 7. Bb3 {[%clk 0:02:59]}  d6 {[%clk 0:02:56]} 8. d3 {[%clk 0:03:00]}  Bb7 {[%clk 0:02:45]} 9. Bg5 {[%clk 0:02:58]}  h6 {[%clk 0:02:43]} 10. Bh4 {[%clk 0:02:59]}  Bb6 {[%clk 0:02:40]} 11. Nbd2 {[%clk 0:02:57]}  Qe7 {[%clk 0:02:37]} 12. Nf1 {[%clk 0:02:56]}  g5 {[%clk 0:02:31]} 13. Bg3 {[%clk 0:02:56]}  Qd7 {[%clk 0:02:13]} 14. Ne3 {[%clk 0:02:54]}  Ne7 {[%clk 0:02:14]} 15. h4 {[%clk 0:02:46]}  g4 {[%clk 0:02:10]} 16. Nh2 {[%clk 0:02:47]}  Rg8 {[%clk 0:02:08]} 17. h5 {[%clk 0:02:41]}  Nxh5 {[%clk 0:02:06]} 18. Nhxg4 {[%clk 0:02:38]}  Nxg3 {[%clk 0:02:03]} 19. fxg3 {[%clk 0:02:36]}  Rg6 {[%clk 0:01:32]} 20. Nxh6 {[%clk 0:02:34]}  O-O-O {[%clk 0:01:19]} 21. Nef5 {[%clk 0:02:31]}  Nxf5 {[%clk 0:01:09]} 22. Nxf5 {[%clk 0:02:30]}  d5 {[%clk 0:01:08]} 23. O-O-O {[%clk 0:02:26]}  c5 {[%clk 0:01:06]} 24. Rhf1 {[%clk 0:02:16]}  dxe4 {[%clk 0:00:37]} 25. dxe4 {[%clk 0:02:15]}  Qe8 {[%clk 0:00:33]} 26. Rxd8+ {[%clk 0:01:18]}  Qxd8 {[%clk 0:00:33]} 27. Bxf7 {[%clk 0:01:15]}  Rf6 {[%clk 0:00:33]} 28. Rd1 {[%clk 0:01:09]}  Qf8 {[%clk 0:00:31]} 29. Bd5 {[%clk 0:01:08]}  Bxd5 {[%clk 0:00:26]} 30. Rxd5 {[%clk 0:01:08]}  c4 {[%clk 0:00:26]} 31. a3 {[%clk 0:01:01]}  Bc7 {[%clk 0:00:23]} 32. Qe3 {[%clk 0:00:52]}  Qf7 {[%clk 0:00:22]} 33. Qa7 {[%clk 0:00:46]}  Rxf5 {[%clk 0:00:18]} 34. Qa8+ {[%clk 0:00:46]}  Bb8 {[%clk 0:00:17]} 35. Qc6+ {[%clk 0:00:43]}  Bc7 {[%clk 0:00:15]} 36. exf5 {[%clk 0:00:40]}  e4 {[%clk 0:00:15]} 37. Qe6+ {[%clk 0:00:31]} 1-0


[Site "https://www.chess.com"]

[Event "Titled Tuesday Blitz February 14 Early 2023"]
[White "Mouhamad, Joachim"]
[Black "Novikov, Evgenij"]
[WhiteFideId "656410"]
[BlackFideId "4125380"]
[WhiteElo "2238"]
[BlackElo "2276"]
[Result "0-1"]
[Round "07"]
[TimeControl "180+2"]
[Date "2023.02.15"]
[WhiteClock "0:00:01"]
[BlackClock "0:00:55"]

1. e4 {[%clk 0:02:56]}  c5 {[%clk 0:02:58]} 2. Nf3 {[%clk 0:02:56]}  Nc6 {[%clk 0:02:57]} 3. d4 {[%clk 0:02:57]}  cxd4 {[%clk 0:02:58]} 4. Nxd4 {[%clk 0:02:58]}  e5 {[%clk 0:02:58]} 5. Nb5 {[%clk 0:02:58]}  a6 {[%clk 0:02:58]} 6. Nd6+ {[%clk 0:02:56]}  Bxd6 {[%clk 0:02:58]} 7. Qxd6 {[%clk 0:02:57]}  Qf6 {[%clk 0:02:58]} 8. Qxf6 {[%clk 0:02:55]}  Nxf6 {[%clk 0:02:59]} 9. Nc3 {[%clk 0:02:55]}  d5 {[%clk 0:03:00]} 10. exd5 {[%clk 0:02:42]}  Nb4 {[%clk 0:03:00]} 11. Bd3 {[%clk 0:02:42]}  Nbxd5 {[%clk 0:02:55]} 12. Nxd5 {[%clk 0:02:41]}  Nxd5 {[%clk 0:02:56]} 13. Bd2 {[%clk 0:02:20]}  O-O {[%clk 0:02:56]} 14. O-O {[%clk 0:02:18]}  Be6 {[%clk 0:02:54]} 15. Rfe1 {[%clk 0:02:11]}  f6 {[%clk 0:02:46]} 16. f4 {[%clk 0:02:09]}  b5 {[%clk 0:02:31]} 17. fxe5 {[%clk 0:02:07]}  f5 {[%clk 0:02:32]} 18. a4 {[%clk 0:02:01]}  b4 {[%clk 0:02:31]} 19. a5 {[%clk 0:01:58]}  Rfd8 {[%clk 0:02:25]} 20. Kf2 {[%clk 0:01:25]}  b3 {[%clk 0:02:24]} 21. Ke2 {[%clk 0:01:14]}  f4 {[%clk 0:02:15]} 22. h3 {[%clk 0:01:12]}  bxc2 {[%clk 0:02:03]} 23. Bxc2 {[%clk 0:01:12]}  Rab8 {[%clk 0:02:00]} 24. Rab1 {[%clk 0:00:57]}  Rb5 {[%clk 0:01:50]} 25. Bd3 {[%clk 0:00:53]}  Rb3 {[%clk 0:01:18]} 26. Bxa6 {[%clk 0:00:53]}  Ne3 {[%clk 0:01:00]} 27. Bxe3 {[%clk 0:00:35]}  fxe3 {[%clk 0:01:01]} 28. Red1 {[%clk 0:00:19]}  Ra8 {[%clk 0:01:01]} 29. Rd6 {[%clk 0:00:16]}  Rxa6 {[%clk 0:00:59]} 30. Rxa6 {[%clk 0:00:09]}  Bc4+ {[%clk 0:00:59]} 31. Ke1 {[%clk 0:00:02]}  Bxa6 {[%clk 0:00:59]} 32. e6 {[%clk 0:00:02]}  Kf8 {[%clk 0:00:58]} 33. Rc1 {[%clk 0:00:02]}  Rxb2 {[%clk 0:00:55]} 34. Rc6 {[%clk 0:00:01]}  Rb1+ {[%clk 0:00:55]} 0-1


[Site "https://www.chess.com"]

[Event "Titled Tuesday Blitz February 14 Early 2023"]
[White "Jaskolka, Tomasz"]
[Black "Rian, Kapriaga"]
[WhiteFideId "1170791"]
[BlackFideId "7103263"]
[WhiteElo "2238"]
[BlackElo "2089"]
[Result "1-0"]
[Round "07"]
[TimeControl "180+2"]
[Date "2023.02.15"]
[WhiteClock "0:00:13"]
[BlackClock "0:00:15"]

1. d4 {[%clk 0:03:00]}  Nf6 {[%clk 0:02:59]} 2. Bf4 {[%clk 0:03:00]}  d5 {[%clk 0:02:56]} 3. e3 {[%clk 0:03:01]}  e6 {[%clk 0:02:55]} 4. c3 {[%clk 0:03:01]}  Bd6 {[%clk 0:02:55]} 5. Bg3 {[%clk 0:03:01]}  O-O {[%clk 0:02:54]} 6. Nd2 {[%clk 0:03:01]}  c5 {[%clk 0:02:53]} 7. Ngf3 {[%clk 0:03:02]}  Qc7 {[%clk 0:02:52]} 8. Bd3 {[%clk 0:03:00]}  Nbd7 {[%clk 0:02:52]} 9. Qe2 {[%clk 0:03:01]}  e5 {[%clk 0:02:42]} 10. dxe5 {[%clk 0:03:02]}  Nxe5 {[%clk 0:02:41]} 11. Nxe5 {[%clk 0:03:03]}  Bxe5 {[%clk 0:02:41]} 12. Bxe5 {[%clk 0:03:04]}  Qxe5 {[%clk 0:02:41]} 13. Nf3 {[%clk 0:03:04]}  Qh5 {[%clk 0:02:39]} 14. O-O-O {[%clk 0:02:50]}  b5 {[%clk 0:02:19]} 15. Nd2 {[%clk 0:02:33]}  Bg4 {[%clk 0:02:10]} 16. f3 {[%clk 0:02:31]}  Be6 {[%clk 0:02:08]} 17. g4 {[%clk 0:02:28]}  Qe5 {[%clk 0:01:59]} 18. f4 {[%clk 0:02:22]}  Qc7 {[%clk 0:01:53]} 19. g5 {[%clk 0:01:49]}  Ne4 {[%clk 0:01:41]} 20. Nxe4 {[%clk 0:01:47]}  dxe4 {[%clk 0:01:41]} 21. Bxe4 {[%clk 0:01:48]}  Rab8 {[%clk 0:01:29]} 22. Kb1 {[%clk 0:01:39]}  Qa5 {[%clk 0:01:28]} 23. Bd5 {[%clk 0:01:29]}  Bxd5 {[%clk 0:00:48]} 24. Rxd5 {[%clk 0:01:29]}  b4 {[%clk 0:00:48]} 25. c4 {[%clk 0:01:11]}  b3 {[%clk 0:00:42]} 26. a3 {[%clk 0:01:12]}  Rfe8 {[%clk 0:00:36]} 27. Rhd1 {[%clk 0:01:01]}  Qc7 {[%clk 0:00:33]} 28. Qd3 {[%clk 0:00:53]}  a5 {[%clk 0:00:29]} 29. Qf5 {[%clk 0:00:38]}  g6 {[%clk 0:00:19]} 30. Qd3 {[%clk 0:00:20]}  Qe7 {[%clk 0:00:18]} 31. Re1 {[%clk 0:00:13]}  a4 {[%clk 0:00:17]} 32. Kc1 {[%clk 0:00:13]}  Qc7 {[%clk 0:00:17]} 33. Rd7 {[%clk 0:00:12]}  Qc6 {[%clk 0:00:16]} 34. Qd5 {[%clk 0:00:12]}  Qa6 {[%clk 0:00:16]} 35. Qxf7+ {[%clk 0:00:12]}  Kh8 {[%clk 0:00:15]} 36. Qg7# {[%clk 0:00:13]} 1-0


[Site "https://www.chess.com"]

[Event "Titled Tuesday Blitz February 14 Early 2023"]
[White "Pasti, Aron"]
[Black "Szente Varga, Fruzsina"]
[WhiteFideId "785857"]
[BlackFideId "712264"]
[WhiteElo "2361"]
[BlackElo "2075"]
[Result "0-1"]
[Round "07"]
[TimeControl "180+2"]
[Date "2023.02.15"]
[WhiteClock "0:00:01"]
[BlackClock "0:00:07"]

1. e4 {[%clk 0:03:00]}  Nf6 {[%clk 0:02:55]} 2. e5 {[%clk 0:03:01]}  Nd5 {[%clk 0:02:52]} 3. d4 {[%clk 0:03:01]}  d6 {[%clk 0:02:52]} 4. c4 {[%clk 0:03:02]}  Nb6 {[%clk 0:02:52]} 5. f4 {[%clk 0:03:02]}  g6 {[%clk 0:02:52]} 6. Nc3 {[%clk 0:02:59]}  Bg7 {[%clk 0:02:53]} 7. Be3 {[%clk 0:02:52]}  O-O {[%clk 0:02:52]} 8. c5 {[%clk 0:02:50]}  dxc5 {[%clk 0:02:49]} 9. dxc5 {[%clk 0:02:51]}  N6d7 {[%clk 0:02:45]} 10. Nf3 {[%clk 0:02:34]}  c6 {[%clk 0:02:45]} 11. h4 {[%clk 0:02:33]}  Qa5 {[%clk 0:02:35]} 12. h5 {[%clk 0:02:28]}  Nxc5 {[%clk 0:02:20]} 13. hxg6 {[%clk 0:02:12]}  hxg6 {[%clk 0:01:55]} 14. Ng5 {[%clk 0:02:05]}  Ne6 {[%clk 0:01:33]} 15. Ne4 {[%clk 0:01:54]}  Rd8 {[%clk 0:01:30]} 16. Qf3 {[%clk 0:01:52]}  Na6 {[%clk 0:01:24]} 17. Qh3 {[%clk 0:01:41]}  Ng5 {[%clk 0:01:11]} 18. Nxg5 {[%clk 0:00:59]}  Bxh3 {[%clk 0:01:10]} 19. Rxh3 {[%clk 0:01:00]}  Nb4 {[%clk 0:01:06]} 20. Kf2 {[%clk 0:00:50]}  Nc2 {[%clk 0:01:03]} 21. Bc4 {[%clk 0:00:14]}  e6 {[%clk 0:00:56]} 22. Rah1 {[%clk 0:00:13]}  Nxe3 {[%clk 0:00:51]} 23. Rxe3 {[%clk 0:00:12]}  Rd2+ {[%clk 0:00:47]} 24. Kf3 {[%clk 0:00:11]}  Rad8 {[%clk 0:00:34]} 25. Nce4 {[%clk 0:00:10]}  Rxb2 {[%clk 0:00:22]} 26. Nf6+ {[%clk 0:00:08]}  Kf8 {[%clk 0:00:16]} 27. Bxe6 {[%clk 0:00:05]}  Qd2 {[%clk 0:00:09]} 28. Rh2 {[%clk 0:00:02]}  Qf2+ {[%clk 0:00:09]} 29. Ke4 {[%clk 0:00:02]}  Qc2+ {[%clk 0:00:08]} 30. Kf3 {[%clk 0:00:02]}  Qf2+ {[%clk 0:00:08]} 31. Ke4 {[%clk 0:00:01]}  Rb4+ {[%clk 0:00:07]} 0-1


[Site "https://www.chess.com"]

[Event "Titled Tuesday Blitz February 14 Early 2023"]
[White "Martin, Lewis"]
[Black "Shuvalov, Evgenij"]
[WhiteFideId "410551"]
[BlackFideId "4187237"]
[WhiteElo "2135"]
[BlackElo "2038"]
[Result "1-0"]
[Round "07"]
[TimeControl "180+2"]
[Date "2023.02.15"]
[WhiteClock "0:01:38"]
[BlackClock "0:01:50"]

1. e4 {[%clk 0:03:00]}  e6 {[%clk 0:02:56]} 2. b3 {[%clk 0:02:59]}  d5 {[%clk 0:02:56]} 3. Bb2 {[%clk 0:02:57]}  c5 {[%clk 0:02:56]} 4. exd5 {[%clk 0:02:53]}  exd5 {[%clk 0:02:56]} 5. Nf3 {[%clk 0:02:53]}  Nc6 {[%clk 0:02:55]} 6. Bb5 {[%clk 0:02:51]}  Qe7+ {[%clk 0:02:54]} 7. Qe2 {[%clk 0:02:49]}  Qxe2+ {[%clk 0:02:53]} 8. Kxe2 {[%clk 0:02:49]}  a6 {[%clk 0:02:51]} 9. Bxc6+ {[%clk 0:02:48]}  bxc6 {[%clk 0:02:52]} 10. Re1 {[%clk 0:02:47]}  f6 {[%clk 0:02:51]} 11. d3 {[%clk 0:02:37]}  a5 {[%clk 0:02:48]} 12. a4 {[%clk 0:02:33]}  Bd6 {[%clk 0:02:38]} 13. Nbd2 {[%clk 0:02:27]}  Ne7 {[%clk 0:02:38]} 14. Kf1 {[%clk 0:02:22]}  Kf7 {[%clk 0:02:37]} 15. h3 {[%clk 0:02:20]}  h5 {[%clk 0:02:36]} 16. Re2 {[%clk 0:02:09]}  Rb8 {[%clk 0:02:17]} 17. Ba3 {[%clk 0:02:06]}  Nf5 {[%clk 0:02:12]} 18. Rae1 {[%clk 0:02:04]}  Bd7 {[%clk 0:02:09]} 19. d4 {[%clk 0:01:58]}  cxd4 {[%clk 0:02:05]} 20. Bxd6 {[%clk 0:01:58]}  Nxd6 {[%clk 0:02:03]} 21. Re7+ {[%clk 0:01:58]}  Kg6 {[%clk 0:02:03]} 22. Rxd7 {[%clk 0:01:59]}  Nf5 {[%clk 0:02:02]} 23. g4 {[%clk 0:01:53]}  hxg4 {[%clk 0:02:01]} 24. hxg4 {[%clk 0:01:53]}  Nh4 {[%clk 0:01:57]} 25. Nxd4 {[%clk 0:01:52]}  Rbe8 {[%clk 0:01:53]} 26. Rxe8 {[%clk 0:01:48]}  Rxe8 {[%clk 0:01:54]} 27. Nxc6 {[%clk 0:01:45]}  Kg5 {[%clk 0:01:49]} 28. Rxg7+ {[%clk 0:01:43]}  Kf4 {[%clk 0:01:50]} 29. Nd4 {[%clk 0:01:38]} 1-0


[Site "https://www.chess.com"]

[Event "Titled Tuesday Blitz February 14 Early 2023"]
[White "Colbow, Collin"]
[Black "Cunha, Lucas Aguiar"]
[WhiteFideId "16201132"]
[BlackFideId "2125404"]
[WhiteElo "2408"]
[BlackElo "2309"]
[Result "0-1"]
[Round "07"]
[TimeControl "180+2"]
[Date "2023.02.15"]
[WhiteClock "0:00:01"]
[BlackClock "0:00:16"]

1. d4 {[%clk 0:03:00]}  Nf6 {[%clk 0:02:59]} 2. Bf4 {[%clk 0:03:00]}  d5 {[%clk 0:02:59]} 3. Nf3 {[%clk 0:03:00]}  c5 {[%clk 0:02:59]} 4. e3 {[%clk 0:02:58]}  Nc6 {[%clk 0:03:00]} 5. c3 {[%clk 0:02:58]}  Qb6 {[%clk 0:03:00]} 6. Qc1 {[%clk 0:02:54]}  Bf5 {[%clk 0:02:54]} 7. Nbd2 {[%clk 0:02:53]}  Rc8 {[%clk 0:02:51]} 8. Nh4 {[%clk 0:01:52]}  Bd7 {[%clk 0:02:42]} 9. Qb1 {[%clk 0:01:44]}  h6 {[%clk 0:02:40]} 10. Nhf3 {[%clk 0:01:39]}  Nh5 {[%clk 0:02:33]} 11. Bg3 {[%clk 0:01:38]}  Nxg3 {[%clk 0:02:27]} 12. hxg3 {[%clk 0:01:39]}  g6 {[%clk 0:02:25]} 13. Bd3 {[%clk 0:01:39]}  cxd4 {[%clk 0:02:08]} 14. exd4 {[%clk 0:01:40]}  g5 {[%clk 0:02:06]} 15. Nxg5 {[%clk 0:01:37]}  Bg7 {[%clk 0:01:58]} 16. Ngf3 {[%clk 0:01:36]}  a6 {[%clk 0:01:46]} 17. O-O {[%clk 0:01:36]}  Bf6 {[%clk 0:01:41]} 18. Re1 {[%clk 0:01:23]}  h5 {[%clk 0:01:37]} 19. Re2 {[%clk 0:01:01]}  Bg4 {[%clk 0:01:30]} 20. Bf5 {[%clk 0:00:58]}  Rd8 {[%clk 0:01:27]} 21. Bxg4 {[%clk 0:00:56]}  hxg4 {[%clk 0:01:28]} 22. Nh2 {[%clk 0:00:57]}  Rg8 {[%clk 0:01:18]} 23. Ndf1 {[%clk 0:00:57]}  Bg5 {[%clk 0:01:00]} 24. Qf5 {[%clk 0:00:56]}  e6 {[%clk 0:00:55]} 25. Qxg4 {[%clk 0:00:53]}  Ne7 {[%clk 0:00:53]} 26. Qf3 {[%clk 0:00:49]}  Rh8 {[%clk 0:00:51]} 27. Ng4 {[%clk 0:00:49]}  Kf8 {[%clk 0:00:46]} 28. Nfh2 {[%clk 0:00:47]}  Ng6 {[%clk 0:00:44]} 29. Rae1 {[%clk 0:00:39]}  Kg7 {[%clk 0:00:42]} 30. Ne5 {[%clk 0:00:35]}  Nxe5 {[%clk 0:00:39]} 31. Rxe5 {[%clk 0:00:36]}  Bf6 {[%clk 0:00:37]} 32. R5e2 {[%clk 0:00:35]}  Rh6 {[%clk 0:00:32]} 33. Ng4 {[%clk 0:00:35]}  Rg6 {[%clk 0:00:32]} 34. Ne5 {[%clk 0:00:15]}  Rg5 {[%clk 0:00:25]} 35. Qf4 {[%clk 0:00:10]}  Qd6 {[%clk 0:00:20]} 36. Nf3 {[%clk 0:00:10]}  Rg6 {[%clk 0:00:16]} 37. Qxd6 {[%clk 0:00:09]}  Rxd6 {[%clk 0:00:17]} 38. Ne5 {[%clk 0:00:08]}  Rg5 {[%clk 0:00:16]} 39. Nd3 {[%clk 0:00:08]}  Rd8 {[%clk 0:00:16]} 40. Nf4 {[%clk 0:00:05]}  Rh8 {[%clk 0:00:17]} 41. Nh3 {[%clk 0:00:05]}  Rgh5 {[%clk 0:00:15]} 42. f3 {[%clk 0:00:04]}  R5h6 {[%clk 0:00:15]} 43. g4 {[%clk 0:00:04]}  Rg6 {[%clk 0:00:15]} 44. Kf2 {[%clk 0:00:04]}  Be7 {[%clk 0:00:16]} 45. Rd1 {[%clk 0:00:03]}  Bh4+ {[%clk 0:00:16]} 46. Kf1 {[%clk 0:00:04]}  Bg3 {[%clk 0:00:16]} 47. b4 {[%clk 0:00:03]}  Rgh6 {[%clk 0:00:15]} 48. a4 {[%clk 0:00:02]}  Kg6 {[%clk 0:00:15]} 49. b5 {[%clk 0:00:02]}  Rc8 {[%clk 0:00:15]} 50. bxa6 {[%clk 0:00:02]}  bxa6 {[%clk 0:00:16]} 51. Rd3 {[%clk 0:00:01]}  Rhh8 {[%clk 0:00:17]} 52. Rb2 {[%clk 0:00:01]}  Bc7 {[%clk 0:00:16]} 53. Rb7 {[%clk 0:00:01]}  Bb8 {[%clk 0:00:16]} 0-1


[Site "https://www.chess.com"]

[Event "Titled Tuesday Blitz February 14 Early 2023"]
[White "Prieto Aranguren, Alain"]
[Black "Ibadov, Dashgyn"]
[WhiteFideId "2268906"]
[BlackFideId "24107514"]
[WhiteElo "2258"]
[BlackElo "2391"]
[Result "0-1"]
[Round "07"]
[TimeControl "180+2"]
[Date "2023.02.15"]
[WhiteClock "0:01:58"]
[BlackClock "0:00:51"]

1. d4 {[%clk 0:03:00]}  Nf6 {[%clk 0:02:59]} 2. c4 {[%clk 0:02:56]}  c5 {[%clk 0:02:59]} 3. d5 {[%clk 0:02:56]}  d6 {[%clk 0:02:58]} 4. Nc3 {[%clk 0:02:55]}  g6 {[%clk 0:02:58]} 5. e4 {[%clk 0:02:54]}  Bg7 {[%clk 0:02:59]} 6. Be3 {[%clk 0:02:53]}  O-O {[%clk 0:02:58]} 7. f3 {[%clk 0:02:53]}  e6 {[%clk 0:02:58]} 8. Nge2 {[%clk 0:02:49]}  exd5 {[%clk 0:02:57]} 9. cxd5 {[%clk 0:02:48]}  a6 {[%clk 0:02:55]} 10. a4 {[%clk 0:02:47]}  Nbd7 {[%clk 0:02:50]} 11. Qd2 {[%clk 0:02:47]}  Ne5 {[%clk 0:02:42]} 12. Ng3 {[%clk 0:02:44]}  h5 {[%clk 0:02:38]} 13. Be2 {[%clk 0:02:41]}  h4 {[%clk 0:02:37]} 14. Nf1 {[%clk 0:02:41]}  h3 {[%clk 0:02:35]} 15. g3 {[%clk 0:02:34]}  Rb8 {[%clk 0:02:34]} 16. a5 {[%clk 0:02:32]}  b5 {[%clk 0:02:34]} 17. axb6 {[%clk 0:02:32]}  Qxb6 {[%clk 0:02:34]} 18. Na4 {[%clk 0:02:28]}  Qc7 {[%clk 0:02:23]} 19. Kf2 {[%clk 0:02:22]}  Bd7 {[%clk 0:02:21]} 20. Nc3 {[%clk 0:02:20]}  Rb4 {[%clk 0:02:00]} 21. Rxa6 {[%clk 0:02:15]}  Qb7 {[%clk 0:01:55]} 22. Ra2 {[%clk 0:02:14]}  Rb8 {[%clk 0:01:26]} 23. Bf4 {[%clk 0:02:13]}  Nh5 {[%clk 0:01:24]} 24. Bxe5 {[%clk 0:02:13]}  Bxe5 {[%clk 0:01:21]} 25. f4 {[%clk 0:02:13]}  Bd4+ {[%clk 0:01:07]} 26. Ne3 {[%clk 0:02:12]}  Nf6 {[%clk 0:01:00]} 27. Rb1 {[%clk 0:02:09]}  Bxc3 {[%clk 0:00:58]} 28. Qc2 {[%clk 0:02:02]}  Bd4 {[%clk 0:00:54]} 29. Kf3 {[%clk 0:01:58]}  Rb3 {[%clk 0:00:51]} 0-1


[Site "https://www.chess.com"]

[Event "Titled Tuesday Blitz February 14 Early 2023"]
[White "Bas Mas, Jose Joaquin"]
[Black "Kalajzic, Ivan"]
[WhiteFideId "22219064"]
[BlackFideId "14506378"]
[WhiteElo "2197"]
[BlackElo "2062"]
[Result "1-0"]
[Round "07"]
[TimeControl "180+2"]
[Date "2023.02.15"]
[WhiteClock "0:00:04"]
[BlackClock "0:00:01"]

1. e4 {[%clk 0:03:00]}  g6 {[%clk 0:02:52]} 2. Nc3 {[%clk 0:02:55]}  Bg7 {[%clk 0:02:52]} 3. h4 {[%clk 0:02:55]}  h6 {[%clk 0:02:50]} 4. Bc4 {[%clk 0:02:54]}  d6 {[%clk 0:02:50]} 5. d3 {[%clk 0:02:54]}  a6 {[%clk 0:02:50]} 6. a4 {[%clk 0:02:48]}  Nc6 {[%clk 0:02:45]} 7. h5 {[%clk 0:02:47]}  g5 {[%clk 0:02:35]} 8. f4 {[%clk 0:02:47]}  gxf4 {[%clk 0:02:26]} 9. Bxf4 {[%clk 0:02:46]}  Nf6 {[%clk 0:02:22]} 10. Nf3 {[%clk 0:02:42]}  Bg4 {[%clk 0:02:20]} 11. Qd2 {[%clk 0:02:40]}  Nxh5 {[%clk 0:01:58]} 12. Rxh5 {[%clk 0:02:15]}  Bxh5 {[%clk 0:01:57]} 13. O-O-O {[%clk 0:02:16]}  e6 {[%clk 0:01:45]} 14. Rg1 {[%clk 0:02:12]}  Qe7 {[%clk 0:01:36]} 15. g4 {[%clk 0:02:12]}  Bg6 {[%clk 0:01:36]} 16. Rf1 {[%clk 0:01:47]}  O-O-O {[%clk 0:01:33]} 17. Be3 {[%clk 0:01:47]}  Ne5 {[%clk 0:01:26]} 18. Nxe5 {[%clk 0:01:45]}  dxe5 {[%clk 0:01:26]} 19. Qf2 {[%clk 0:01:38]}  Rd4 {[%clk 0:01:12]} 20. Ne2 {[%clk 0:01:31]}  Rxc4 {[%clk 0:01:10]} 21. dxc4 {[%clk 0:01:31]}  Qb4 {[%clk 0:01:04]} 22. Nc3 {[%clk 0:01:17]}  Qxc4 {[%clk 0:01:01]} 23. Rd1 {[%clk 0:01:14]}  b5 {[%clk 0:00:47]} 24. axb5 {[%clk 0:01:09]}  axb5 {[%clk 0:00:48]} 25. Qd2 {[%clk 0:01:06]}  b4 {[%clk 0:00:42]} 26. Qd7+ {[%clk 0:01:06]}  Kb7 {[%clk 0:00:42]} 27. Na4 {[%clk 0:00:56]}  Bf8 {[%clk 0:00:34]} 28. b3 {[%clk 0:00:20]}  Qxe4 {[%clk 0:00:31]} 29. Qb5+ {[%clk 0:00:20]}  Kc8 {[%clk 0:00:26]} 30. Qa6+ {[%clk 0:00:20]}  Qb7 {[%clk 0:00:19]} 31. Rd8+ {[%clk 0:00:20]}  Kxd8 {[%clk 0:00:18]} 32. Qxb7 {[%clk 0:00:20]}  Ke7 {[%clk 0:00:17]} 33. Bc5+ {[%clk 0:00:20]}  Kf6 {[%clk 0:00:17]} 34. Qxc7 {[%clk 0:00:20]}  Bxc5 {[%clk 0:00:13]} 35. Nxc5 {[%clk 0:00:21]}  h5 {[%clk 0:00:13]} 36. gxh5 {[%clk 0:00:18]}  Rxh5 {[%clk 0:00:13]} 37. Qb6 {[%clk 0:00:18]}  Rh2 {[%clk 0:00:12]} 38. Qxb4 {[%clk 0:00:16]}  Rxc2+ {[%clk 0:00:12]} 39. Kd1 {[%clk 0:00:16]}  Rh2 {[%clk 0:00:07]} 40. Nd7+ {[%clk 0:00:13]}  Kg5 {[%clk 0:00:05]} 41. Nxe5 {[%clk 0:00:13]}  Bh5+ {[%clk 0:00:03]} 42. Kc1 {[%clk 0:00:12]}  f5 {[%clk 0:00:04]} 43. Qd4 {[%clk 0:00:10]}  Rh4 {[%clk 0:00:02]} 44. Qg1+ {[%clk 0:00:05]}  Bg4 {[%clk 0:00:01]} 45. Nf3+ {[%clk 0:00:04]} 1-0


[Site "https://www.chess.com"]